[Event "Titled Tuesday Blitz February 21 Early 2023"]
[White "Antonio, Jorge Carlos"]
[Black "Bambino Filho, Antonio Carlos"]
[WhiteFideId "113190"]
[BlackFideId "2113163"]
[WhiteElo "2277"]
[BlackElo "2144"]
[Result "1-0"]
[Round "04"]
[TimeControl "180+2"]
[Date "2023.02.21"]
[WhiteClock "0:01:25"]
[BlackClock "0:01:39"]

1. d4 {[%clk 0:03:00]}  Nf6 {[%clk 0:02:57]} 2. Nf3 {[%clk 0:03:00]}  c5 {[%clk 0:02:57]} 3. c3 {[%clk 0:02:58]}  b6 {[%clk 0:02:56]} 4. Bf4 {[%clk 0:02:55]}  Bb7 {[%clk 0:02:56]} 5. e3 {[%clk 0:02:46]}  d6 {[%clk 0:02:56]} 6. Nbd2 {[%clk 0:02:43]}  g6 {[%clk 0:02:50]} 7. Be2 {[%clk 0:02:40]}  Bg7 {[%clk 0:02:50]} 8. h4 {[%clk 0:02:36]}  h6 {[%clk 0:02:49]} 9. h5 {[%clk 0:02:32]}  g5 {[%clk 0:02:47]} 10. Bg3 {[%clk 0:02:25]}  Nbd7 {[%clk 0:02:42]} 11. Qc2 {[%clk 0:02:25]}  Rc8 {[%clk 0:02:40]} 12. O-O-O {[%clk 0:02:22]}  cxd4 {[%clk 0:02:40]} 13. Nxd4 {[%clk 0:02:19]}  Nc5 {[%clk 0:02:22]} 14. f3 {[%clk 0:02:14]}  e6 {[%clk 0:02:15]} 15. Bb5+ {[%clk 0:02:10]}  Kf8 {[%clk 0:02:15]} 16. Nc4 {[%clk 0:02:04]}  d5 {[%clk 0:01:56]} 17. Nd6 {[%clk 0:02:00]}  Rc7 {[%clk 0:01:51]} 18. Nxb7 {[%clk 0:01:56]}  Rxb7 {[%clk 0:01:51]} 19. b4 {[%clk 0:01:52]}  Ncd7 {[%clk 0:01:48]} 20. Bd6+ {[%clk 0:01:47]}  Kg8 {[%clk 0:01:47]} 21. Nc6 {[%clk 0:01:43]}  Qa8 {[%clk 0:01:38]} 22. Ne7+ {[%clk 0:01:41]}  Kf8 {[%clk 0:01:39]} 23. Nxd5+ {[%clk 0:01:30]}  Ke8 {[%clk 0:01:39]} 24. Nxf6+ {[%clk 0:01:25]} 1-0


[Site "https://www.chess.com"]

[Event "Titled Tuesday Blitz February 21 Early 2023"]
[White "Buchenau, Frank"]
[Black "Meera, Sai"]
[WhiteFideId "4604350"]
[BlackFideId "5004357"]
[WhiteElo "2222"]
[BlackElo "2064"]
[Result "1-0"]
[Round "04"]
[TimeControl "180+2"]
[Date "2023.02.21"]
[WhiteClock "0:00:58"]
[BlackClock "0:00:02"]

1. e4 {[%clk 0:03:00]}  e5 {[%clk 0:02:59]} 2. Bc4 {[%clk 0:02:59]}  Nf6 {[%clk 0:02:58]} 3. d3 {[%clk 0:03:00]}  Nc6 {[%clk 0:02:58]} 4. Nf3 {[%clk 0:03:00]}  Bc5 {[%clk 0:02:57]} 5. O-O {[%clk 0:03:00]}  O-O {[%clk 0:02:56]} 6. c3 {[%clk 0:03:00]}  d5 {[%clk 0:02:55]} 7. exd5 {[%clk 0:03:00]}  Nxd5 {[%clk 0:02:56]} 8. Re1 {[%clk 0:02:59]}  Bg4 {[%clk 0:02:56]} 9. h3 {[%clk 0:02:59]}  Bh5 {[%clk 0:02:56]} 10. b4 {[%clk 0:02:58]}  Be7 {[%clk 0:02:55]} 11. b5 {[%clk 0:02:58]}  Na5 {[%clk 0:02:55]} 12. Rxe5 {[%clk 0:02:57]}  Nxc4 {[%clk 0:02:52]} 13. Rxh5 {[%clk 0:02:45]}  Nf6 {[%clk 0:02:43]} 14. Rh4 {[%clk 0:02:39]}  Nd6 {[%clk 0:02:42]} 15. a4 {[%clk 0:02:31]}  Nd5 {[%clk 0:02:21]} 16. Rd4 {[%clk 0:02:26]}  Nf5 {[%clk 0:02:20]} 17. Re4 {[%clk 0:02:24]}  Bf6 {[%clk 0:02:15]} 18. d4 {[%clk 0:02:24]}  Nd6 {[%clk 0:02:12]} 19. Re1 {[%clk 0:02:21]}  Nc4 {[%clk 0:02:09]} 20. Qd3 {[%clk 0:02:19]}  Nd6 {[%clk 0:01:40]} 21. Nbd2 {[%clk 0:02:17]}  a6 {[%clk 0:01:36]} 22. Bb2 {[%clk 0:02:11]}  axb5 {[%clk 0:01:34]} 23. axb5 {[%clk 0:02:11]}  c6 {[%clk 0:01:32]} 24. Rxa8 {[%clk 0:02:09]}  Qxa8 {[%clk 0:01:31]} 25. Ra1 {[%clk 0:02:08]}  Qd8 {[%clk 0:01:28]} 26. bxc6 {[%clk 0:02:07]}  bxc6 {[%clk 0:01:29]} 27. c4 {[%clk 0:02:00]}  Nb4 {[%clk 0:01:21]} 28. Qb3 {[%clk 0:01:56]}  Qb8 {[%clk 0:01:18]} 29. Ba3 {[%clk 0:01:47]}  c5 {[%clk 0:01:16]} 30. Rb1 {[%clk 0:01:39]}  Na6 {[%clk 0:00:11]} 31. Qxb8 {[%clk 0:01:34]}  Nxb8 {[%clk 0:00:11]} 32. Bxc5 {[%clk 0:01:33]}  Be7 {[%clk 0:00:11]} 33. Ne5 {[%clk 0:01:24]}  Na6 {[%clk 0:00:11]} 34. Ba3 {[%clk 0:01:18]}  Rc8 {[%clk 0:00:09]} 35. Rb6 {[%clk 0:01:11]}  Ne4 {[%clk 0:00:05]} 36. Nxe4 {[%clk 0:01:09]}  Bxa3 {[%clk 0:00:05]} 37. Rxa6 {[%clk 0:01:08]}  Bf8 {[%clk 0:00:06]} 38. c5 {[%clk 0:01:06]}  f6 {[%clk 0:00:05]} 39. Nd7 {[%clk 0:01:05]}  Re8 {[%clk 0:00:05]} 40. Nd6 {[%clk 0:01:02]}  Re1+ {[%clk 0:00:05]} 41. Kh2 {[%clk 0:01:02]}  Re8 {[%clk 0:00:01]} 42. Nxf8 {[%clk 0:01:00]}  Kxf8 {[%clk 0:00:02]} 43. c6 {[%clk 0:00:58]}  Rd8 {[%clk 0:00:02]} 44. c7 {[%clk 0:00:58]} 1-0


[Site "https://www.chess.com"]

[Event "Titled Tuesday Blitz February 21 Early 2023"]
[White "Guimaraes, Wagner Peixoto"]
[Black "Erzhanov, Arman"]
[WhiteFideId "2100940"]
[BlackFideId "4138821"]
[WhiteElo "2194"]
[BlackElo "2228"]
[Result "0-1"]
[Round "04"]
[TimeControl "180+2"]
[Date "2023.02.21"]
[WhiteClock "0:00:14"]
[BlackClock "0:01:14"]

1. e4 {[%clk 0:03:00]}  d6 {[%clk 0:03:00]} 2. d4 {[%clk 0:03:00]}  Nf6 {[%clk 0:03:00]} 3. Nc3 {[%clk 0:02:59]}  c6 {[%clk 0:03:00]} 4. f4 {[%clk 0:02:50]}  d5 {[%clk 0:02:56]} 5. e5 {[%clk 0:02:48]}  Ng8 {[%clk 0:02:57]} 6. Nf3 {[%clk 0:02:47]}  h5 {[%clk 0:02:58]} 7. Bd3 {[%clk 0:02:43]}  Nh6 {[%clk 0:02:57]} 8. O-O {[%clk 0:02:40]}  g6 {[%clk 0:02:54]} 9. Ng5 {[%clk 0:02:40]}  Bf5 {[%clk 0:02:43]} 10. Bxf5 {[%clk 0:02:33]}  Nxf5 {[%clk 0:02:43]} 11. e6 {[%clk 0:02:34]}  fxe6 {[%clk 0:02:35]} 12. Nxe6 {[%clk 0:02:32]}  Qd6 {[%clk 0:02:35]} 13. Qe1 {[%clk 0:02:20]}  Nd7 {[%clk 0:02:29]} 14. Bd2 {[%clk 0:02:12]}  Bh6 {[%clk 0:02:22]} 15. g3 {[%clk 0:02:09]}  Ng7 {[%clk 0:02:20]} 16. f5 {[%clk 0:01:53]}  Nxe6 {[%clk 0:02:09]} 17. fxe6 {[%clk 0:01:51]}  Nf6 {[%clk 0:02:00]} 18. Bxh6 {[%clk 0:01:47]}  Rxh6 {[%clk 0:02:00]} 19. Qe3 {[%clk 0:01:35]}  Rh7 {[%clk 0:01:52]} 20. Qg5 {[%clk 0:01:30]}  Rg7 {[%clk 0:01:47]} 21. Rae1 {[%clk 0:01:18]}  O-O-O {[%clk 0:01:47]} 22. Rxf6 {[%clk 0:01:11]}  exf6 {[%clk 0:01:46]} 23. Qxf6 {[%clk 0:01:12]}  Qe7 {[%clk 0:01:46]} 24. Qe5 {[%clk 0:01:12]}  h4 {[%clk 0:01:44]} 25. Ne2 {[%clk 0:01:08]}  hxg3 {[%clk 0:01:44]} 26. hxg3 {[%clk 0:01:09]}  g5 {[%clk 0:01:36]} 27. Nc3 {[%clk 0:00:57]}  Re8 {[%clk 0:01:28]} 28. Kg2 {[%clk 0:00:55]}  Rg6 {[%clk 0:01:29]} 29. Qf5 {[%clk 0:00:48]}  Rf6 {[%clk 0:01:25]} 30. Qg4 {[%clk 0:00:44]}  Kb8 {[%clk 0:01:23]} 31. Re5 {[%clk 0:00:37]}  Rxe6 {[%clk 0:01:21]} 32. Rxg5 {[%clk 0:00:36]}  Qh7 {[%clk 0:01:14]} 33. Qd1 {[%clk 0:00:14]}  Re1 {[%clk 0:01:14]} 0-1


[Site "https://www.chess.com"]

[Event "Titled Tuesday Blitz February 21 Early 2023"]
[White "Orujov, Elshad"]
[Black "Sanchez, Robert"]
[WhiteFideId "13403540"]
[BlackFideId "2034360"]
[WhiteElo "2304"]
[BlackElo "1966"]
[Result "0-1"]
[Round "04"]
[TimeControl "180+2"]
[Date "2023.02.21"]
[WhiteClock "0:00:05"]
[BlackClock "0:00:19"]

1. e4 {[%clk 0:02:55]}  c5 {[%clk 0:02:59]} 2. Nf3 {[%clk 0:02:54]}  e6 {[%clk 0:03:00]} 3. d4 {[%clk 0:02:54]}  cxd4 {[%clk 0:03:01]} 4. Nxd4 {[%clk 0:02:55]}  a6 {[%clk 0:03:01]} 5. Bd3 {[%clk 0:02:54]}  Qc7 {[%clk 0:03:01]} 6. O-O {[%clk 0:02:54]}  Nc6 {[%clk 0:03:01]} 7. Nxc6 {[%clk 0:02:50]}  bxc6 {[%clk 0:03:00]} 8. c4 {[%clk 0:02:49]}  Nf6 {[%clk 0:02:57]} 9. Qe2 {[%clk 0:02:48]}  e5 {[%clk 0:02:55]} 10. f4 {[%clk 0:02:48]}  Bc5+ {[%clk 0:02:52]} 11. Kh1 {[%clk 0:02:47]}  h5 {[%clk 0:02:52]} 12. fxe5 {[%clk 0:02:45]}  Ng4 {[%clk 0:02:47]} 13. Nc3 {[%clk 0:02:29]}  Qa7 {[%clk 0:02:30]} 14. h3 {[%clk 0:02:08]}  Nxe5 {[%clk 0:02:24]} 15. Bf4 {[%clk 0:01:53]}  d6 {[%clk 0:02:18]} 16. Bc2 {[%clk 0:01:28]}  Be6 {[%clk 0:02:12]} 17. Bxe5 {[%clk 0:01:19]}  dxe5 {[%clk 0:02:11]} 18. Ba4 {[%clk 0:01:20]}  Rc8 {[%clk 0:02:09]} 19. Rad1 {[%clk 0:01:15]}  Bg4 {[%clk 0:01:58]} 20. Qd2 {[%clk 0:00:37]}  Bxd1 {[%clk 0:01:58]} 21. Rxd1 {[%clk 0:00:38]}  O-O {[%clk 0:01:56]} 22. Qg5 {[%clk 0:00:37]}  Bd4 {[%clk 0:01:47]} 23. Qxh5 {[%clk 0:00:25]}  Bxc3 {[%clk 0:01:44]} 24. bxc3 {[%clk 0:00:25]}  Qc5 {[%clk 0:01:40]} 25. Bb3 {[%clk 0:00:21]}  Rcd8 {[%clk 0:01:37]} 26. Rf1 {[%clk 0:00:21]}  Rd6 {[%clk 0:01:34]} 27. Kh2 {[%clk 0:00:16]}  a5 {[%clk 0:01:23]} 28. Rf5 {[%clk 0:00:15]}  Re6 {[%clk 0:01:18]} 29. Rg5 {[%clk 0:00:13]}  Rd8 {[%clk 0:00:54]} 30. Qg4 {[%clk 0:00:10]}  g6 {[%clk 0:00:50]} 31. h4 {[%clk 0:00:09]}  Qe3 {[%clk 0:00:47]} 32. h5 {[%clk 0:00:08]}  Kg7 {[%clk 0:00:43]} 33. c5 {[%clk 0:00:07]}  Rf6 {[%clk 0:00:36]} 34. Bxf7 {[%clk 0:00:02]}  Kxf7 {[%clk 0:00:30]} 35. Rxg6 {[%clk 0:00:03]}  Qf4+ {[%clk 0:00:30]} 36. Qxf4 {[%clk 0:00:02]}  exf4 {[%clk 0:00:29]} 37. Rg4 {[%clk 0:00:01]}  Rg8 {[%clk 0:00:28]} 38. Rh4 {[%clk 0:00:01]}  Ke6 {[%clk 0:00:26]} 39. h6 {[%clk 0:00:01]}  Ke5 {[%clk 0:00:25]} 40. Kh3 {[%clk 0:00:01]}  Rh8 {[%clk 0:00:23]} 41. h7 {[%clk 0:00:02]}  Rf7 {[%clk 0:00:23]} 42. Kg4 {[%clk 0:00:01]}  Rg7+ {[%clk 0:00:22]} 43. Kf3 {[%clk 0:00:01]}  Rhxh7 {[%clk 0:00:21]} 44. Rxf4 {[%clk 0:00:02]}  Rf7 {[%clk 0:00:22]} 45. Rxf7 {[%clk 0:00:01]}  Rxf7+ {[%clk 0:00:23]} 46. Ke3 {[%clk 0:00:02]}  Rg7 {[%clk 0:00:23]} 47. Kd3 {[%clk 0:00:03]}  Rxg2 {[%clk 0:00:20]} 48. Kc4 {[%clk 0:00:03]}  Kxe4 {[%clk 0:00:20]} 49. Kb3 {[%clk 0:00:04]}  Kd5 {[%clk 0:00:20]} 50. Ka4 {[%clk 0:00:05]}  Rxa2+ {[%clk 0:00:18]} 51. Kb3 {[%clk 0:00:05]}  Rh2 {[%clk 0:00:19]} 0-1


[Site "https://www.chess.com"]

[Event "Titled Tuesday Blitz February 21 Early 2023"]
[White "MunichMouse"]
[Black "Degenbaev, Aziz"]
[BlackFideId "13802640"]
[WhiteElo "2296"]
[BlackElo "2203"]
[Result "0-1"]
[Round "04"]
[TimeControl "180+2"]
[Date "2023.02.21"]
[WhiteClock "0:00:02"]
[BlackClock "0:00:03"]

1. d4 {[%clk 0:03:00]}  Nf6 {[%clk 0:03:00]} 2. c4 {[%clk 0:03:01]}  g6 {[%clk 0:03:00]} 3. g3 {[%clk 0:03:01]}  Bg7 {[%clk 0:03:00]} 4. Bg2 {[%clk 0:03:02]}  O-O {[%clk 0:02:47]} 5. e4 {[%clk 0:03:02]}  c5 {[%clk 0:02:40]} 6. d5 {[%clk 0:03:01]}  d6 {[%clk 0:02:41]} 7. Ne2 {[%clk 0:03:01]}  b5 {[%clk 0:02:38]} 8. cxb5 {[%clk 0:02:57]}  a6 {[%clk 0:02:37]} 9. bxa6 {[%clk 0:02:56]}  Bxa6 {[%clk 0:02:38]} 10. Nbc3 {[%clk 0:02:55]}  Nbd7 {[%clk 0:02:39]} 11. O-O {[%clk 0:02:53]}  Qb6 {[%clk 0:02:39]} 12. Re1 {[%clk 0:02:49]}  Rfb8 {[%clk 0:02:33]} 13. f4 {[%clk 0:02:39]}  Ng4 {[%clk 0:02:07]} 14. Rf1 {[%clk 0:02:06]}  c4+ {[%clk 0:02:04]} 15. Kh1 {[%clk 0:02:06]}  Nf2+ {[%clk 0:01:54]} 16. Rxf2 {[%clk 0:02:06]}  Qxf2 {[%clk 0:01:55]} 17. Rb1 {[%clk 0:01:55]}  Nc5 {[%clk 0:01:37]} 18. Qg1 {[%clk 0:01:48]}  Qxg1+ {[%clk 0:01:33]} 19. Kxg1 {[%clk 0:01:49]}  Nd3 {[%clk 0:01:33]} 20. Be3 {[%clk 0:01:24]}  Rxb2 {[%clk 0:01:22]} 21. Rxb2 {[%clk 0:01:21]}  Nxb2 {[%clk 0:01:23]} 22. Bd4 {[%clk 0:01:22]}  Bc8 {[%clk 0:00:33]} 23. Kf2 {[%clk 0:01:18]}  Na4 {[%clk 0:00:28]} 24. Ke3 {[%clk 0:00:54]}  Bg4 {[%clk 0:00:20]} 25. Nxa4 {[%clk 0:00:41]}  Bxe2 {[%clk 0:00:09]} 26. Nc3 {[%clk 0:00:36]}  Bd3 {[%clk 0:00:08]} 27. Bxg7 {[%clk 0:00:32]}  Kxg7 {[%clk 0:00:09]} 28. Kd4 {[%clk 0:00:32]}  Rb8 {[%clk 0:00:08]} 29. a4 {[%clk 0:00:10]}  Ra8 {[%clk 0:00:07]} 30. Bh3 {[%clk 0:00:08]}  f5 {[%clk 0:00:03]} 31. e5 {[%clk 0:00:02]}  Kf7 {[%clk 0:00:03]} 0-1


[Site "https://www.chess.com"]

[Event "Titled Tuesday Blitz February 21 Early 2023"]
[White "Heinemann, Josefine"]
[Black "Fernandez Siles, Luis"]
[WhiteFideId "12900460"]
[BlackFideId "2209420"]
[WhiteElo "2289"]
[BlackElo "2218"]
[Result "0-1"]
[Round "04"]
[TimeControl "180+2"]
[Date "2023.02.21"]
[WhiteClock "0:00:42"]
[BlackClock "0:00:21"]

1. e4 {[%clk 0:03:00]}  c5 {[%clk 0:02:59]} 2. Nf3 {[%clk 0:02:59]}  Nc6 {[%clk 0:02:59]} 3. Bb5 {[%clk 0:02:59]}  g6 {[%clk 0:02:59]} 4. O-O {[%clk 0:02:58]}  Bg7 {[%clk 0:02:59]} 5. c3 {[%clk 0:02:58]}  Nf6 {[%clk 0:02:56]} 6. Re1 {[%clk 0:02:58]}  O-O {[%clk 0:02:54]} 7. d4 {[%clk 0:02:57]}  d5 {[%clk 0:02:53]} 8. e5 {[%clk 0:02:57]}  Ne4 {[%clk 0:02:53]} 9. Be3 {[%clk 0:02:58]}  Qb6 {[%clk 0:02:48]} 10. Qe2 {[%clk 0:02:57]}  c4 {[%clk 0:02:39]} 11. Bxc4 {[%clk 0:02:47]}  dxc4 {[%clk 0:02:27]} 12. d5 {[%clk 0:02:46]}  Qc7 {[%clk 0:02:14]} 13. dxc6 {[%clk 0:02:45]}  Qxc6 {[%clk 0:02:14]} 14. Bd4 {[%clk 0:02:39]}  Bf5 {[%clk 0:02:01]} 15. h3 {[%clk 0:02:36]}  h5 {[%clk 0:02:01]} 16. Nh4 {[%clk 0:02:32]}  e6 {[%clk 0:01:40]} 17. Nxf5 {[%clk 0:02:12]}  exf5 {[%clk 0:01:38]} 18. h4 {[%clk 0:02:12]}  b5 {[%clk 0:01:31]} 19. a4 {[%clk 0:02:09]}  a6 {[%clk 0:01:30]} 20. Nd2 {[%clk 0:02:06]}  Nxd2 {[%clk 0:01:23]} 21. Qxd2 {[%clk 0:02:06]}  Rad8 {[%clk 0:01:22]} 22. axb5 {[%clk 0:01:55]}  axb5 {[%clk 0:01:22]} 23. Qg5 {[%clk 0:01:53]}  Kh7 {[%clk 0:00:58]} 24. Ra7 {[%clk 0:01:45]}  Rde8 {[%clk 0:00:45]} 25. f3 {[%clk 0:01:02]}  Qd5 {[%clk 0:00:40]} 26. Rc7 {[%clk 0:00:52]}  Bxe5 {[%clk 0:00:21]} 27. Rc5 {[%clk 0:00:42]}  Bxd4+ {[%clk 0:00:21]} 0-1


[Site "https://www.chess.com"]

[Event "Titled Tuesday Blitz February 21 Early 2023"]
[White "Kiselev, Pavel"]
[Black "Balabayeva, Xeniya"]
[WhiteFideId "4191102"]
[BlackFideId "13719688"]
[WhiteElo "2245"]
[BlackElo "2191"]
[Result "0-1"]
[Round "04"]
[TimeControl "180+2"]
[Date "2023.02.21"]
[WhiteClock "0:00:13"]
[BlackClock "0:00:24"]

1. Nf3 {[%clk 0:03:00]}  d5 {[%clk 0:02:57]} 2. d4 {[%clk 0:03:01]}  Nf6 {[%clk 0:02:55]} 3. c4 {[%clk 0:03:01]}  e6 {[%clk 0:02:53]} 4. Nc3 {[%clk 0:03:00]}  c5 {[%clk 0:02:50]} 5. cxd5 {[%clk 0:02:58]}  cxd4 {[%clk 0:02:48]} 6. Qxd4 {[%clk 0:02:57]}  exd5 {[%clk 0:02:47]} 7. Bg5 {[%clk 0:02:55]}  Be7 {[%clk 0:02:43]} 8. e3 {[%clk 0:02:52]}  O-O {[%clk 0:02:38]} 9. Be2 {[%clk 0:02:50]}  Nc6 {[%clk 0:02:35]} 10. Qd3 {[%clk 0:02:44]}  h6 {[%clk 0:02:32]} 11. Bh4 {[%clk 0:02:43]}  Qb6 {[%clk 0:02:30]} 12. Qb5 {[%clk 0:02:42]}  Qxb5 {[%clk 0:02:19]} 13. Bxb5 {[%clk 0:02:33]}  Be6 {[%clk 0:02:12]} 14. O-O {[%clk 0:02:31]}  Rac8 {[%clk 0:01:58]} 15. Rad1 {[%clk 0:02:29]}  Rfd8 {[%clk 0:01:58]} 16. h3 {[%clk 0:02:20]}  g5 {[%clk 0:01:50]} 17. Bg3 {[%clk 0:02:20]}  Ne4 {[%clk 0:01:49]} 18. Nxe4 {[%clk 0:02:14]}  dxe4 {[%clk 0:01:48]} 19. Nd2 {[%clk 0:01:52]}  f5 {[%clk 0:01:37]} 20. Bc4 {[%clk 0:01:49]}  Kf7 {[%clk 0:01:33]} 21. Bxe6+ {[%clk 0:01:44]}  Kxe6 {[%clk 0:01:32]} 22. Nb3 {[%clk 0:01:44]}  Nb4 {[%clk 0:01:21]} 23. Nd4+ {[%clk 0:01:39]}  Kf6 {[%clk 0:01:20]} 24. a3 {[%clk 0:01:34]}  Nd3 {[%clk 0:01:19]} 25. b4 {[%clk 0:01:22]}  Kg6 {[%clk 0:00:57]} 26. Ne2 {[%clk 0:00:27]}  Bf6 {[%clk 0:00:40]} 27. Rb1 {[%clk 0:00:20]}  Rc2 {[%clk 0:00:39]} 28. Nd4 {[%clk 0:00:19]}  Bxd4 {[%clk 0:00:38]} 29. exd4 {[%clk 0:00:19]}  f4 {[%clk 0:00:37]} 30. Bh2 {[%clk 0:00:19]}  Rxd4 {[%clk 0:00:37]} 31. Rb3 {[%clk 0:00:18]}  Rdc4 {[%clk 0:00:36]} 32. f3 {[%clk 0:00:16]}  Nc1 {[%clk 0:00:26]} 33. Rb1 {[%clk 0:00:14]}  e3 {[%clk 0:00:26]} 34. Re1 {[%clk 0:00:13]}  Nd3 {[%clk 0:00:23]} 35. Red1 {[%clk 0:00:13]}  e2 {[%clk 0:00:24]} 36. Rxd3 {[%clk 0:00:12]}  Rc1+ {[%clk 0:00:24]} 37. Kf2 {[%clk 0:00:13]}  e1=Q# {[%clk 0:00:24]} 0-1


[Site "https://www.chess.com"]

[Event "Titled Tuesday Blitz February 21 Early 2023"]
[White "Ruge, Edison"]
[Black "Zacurdajev, Dmitry"]
[WhiteFideId "4401000"]
[BlackFideId "4196309"]
[WhiteElo "2201"]
[BlackElo "2273"]
[Result "0-1"]
[Round "04"]
[TimeControl "180+2"]
[Date "2023.02.21"]
[WhiteClock "0:00:16"]
[BlackClock "0:00:20"]

1. e4 {[%clk 0:02:50]}  c6 {[%clk 0:02:55]} 2. d3 {[%clk 0:02:49]}  d5 {[%clk 0:02:56]} 3. Nd2 {[%clk 0:02:49]}  e6 {[%clk 0:02:56]} 4. Ngf3 {[%clk 0:02:50]}  Nf6 {[%clk 0:02:57]} 5. g3 {[%clk 0:02:48]}  Be7 {[%clk 0:02:58]} 6. Bg2 {[%clk 0:02:48]}  O-O {[%clk 0:02:58]} 7. O-O {[%clk 0:02:48]}  c5 {[%clk 0:02:59]} 8. e5 {[%clk 0:02:48]}  Nfd7 {[%clk 0:02:58]} 9. Re1 {[%clk 0:02:49]}  Nc6 {[%clk 0:02:59]} 10. Nf1 {[%clk 0:02:48]}  b5 {[%clk 0:02:59]} 11. c3 {[%clk 0:02:48]}  a5 {[%clk 0:02:59]} 12. h4 {[%clk 0:02:48]}  Ba6 {[%clk 0:02:59]} 13. Bf4 {[%clk 0:02:48]}  b4 {[%clk 0:02:59]} 14. Rc1 {[%clk 0:02:46]}  a4 {[%clk 0:02:53]} 15. c4 {[%clk 0:02:46]}  Nb6 {[%clk 0:02:48]} 16. Qe2 {[%clk 0:02:42]}  Rc8 {[%clk 0:02:36]} 17. Red1 {[%clk 0:02:41]}  b3 {[%clk 0:02:15]} 18. a3 {[%clk 0:02:38]}  Na5 {[%clk 0:02:09]} 19. Ne3 {[%clk 0:02:32]}  Qd7 {[%clk 0:01:53]} 20. h5 {[%clk 0:02:25]}  h6 {[%clk 0:01:52]} 21. Qd2 {[%clk 0:02:15]}  Nc6 {[%clk 0:01:50]} 22. Bxh6 {[%clk 0:02:01]}  dxc4 {[%clk 0:01:38]} 23. Ng4 {[%clk 0:02:01]}  Qxd3 {[%clk 0:01:33]} 24. Qf4 {[%clk 0:01:54]}  Qf5 {[%clk 0:01:32]} 25. Qxf5 {[%clk 0:01:44]}  exf5 {[%clk 0:01:33]} 26. Ne3 {[%clk 0:01:44]}  gxh6 {[%clk 0:01:31]} 27. Nxf5 {[%clk 0:01:44]}  Rfd8 {[%clk 0:01:25]} 28. Nxh6+ {[%clk 0:01:42]}  Kh7 {[%clk 0:01:24]} 29. Nf5 {[%clk 0:01:39]}  Rxd1+ {[%clk 0:01:22]} 30. Rxd1 {[%clk 0:01:39]}  Rd8 {[%clk 0:01:23]} 31. Rc1 {[%clk 0:01:34]}  Nd5 {[%clk 0:01:12]} 32. Nxe7 {[%clk 0:01:33]}  Ndxe7 {[%clk 0:00:52]} 33. Ng5+ {[%clk 0:01:33]}  Kg8 {[%clk 0:00:52]} 34. f4 {[%clk 0:01:19]}  Nd4 {[%clk 0:00:49]} 35. Kh2 {[%clk 0:01:11]}  Ne2 {[%clk 0:00:38]} 36. Re1 {[%clk 0:01:08]}  c3 {[%clk 0:00:38]} 37. bxc3 {[%clk 0:01:02]}  Nxc3 {[%clk 0:00:38]} 38. h6 {[%clk 0:01:01]}  b2 {[%clk 0:00:36]} 39. h7+ {[%clk 0:01:00]}  Kg7 {[%clk 0:00:36]} 40. Be4 {[%clk 0:00:54]}  Nxe4 {[%clk 0:00:33]} 41. Nxe4 {[%clk 0:00:53]}  Bd3 {[%clk 0:00:24]} 42. Nc3 {[%clk 0:00:41]}  Bxh7 {[%clk 0:00:19]} 43. g4 {[%clk 0:00:40]}  Nd5 {[%clk 0:00:19]} 44. Nxd5 {[%clk 0:00:33]}  Rxd5 {[%clk 0:00:20]} 45. f5 {[%clk 0:00:34]}  Rd2+ {[%clk 0:00:19]} 46. Kg3 {[%clk 0:00:31]}  Rc2 {[%clk 0:00:19]} 47. Rb1 {[%clk 0:00:30]}  c4 {[%clk 0:00:20]} 48. Kf4 {[%clk 0:00:22]}  c3 {[%clk 0:00:19]} 49. g5 {[%clk 0:00:16]}  Rc1 {[%clk 0:00:20]} 0-1


[Site "https://www.chess.com"]

[Event "Titled Tuesday Blitz February 21 Early 2023"]
[White "Matko, Ognjen"]
[Black "lisjakzlatko1"]
[WhiteFideId "14509717"]
[WhiteElo "2295"]
[BlackElo "2162"]
[Result "1-0"]
[Round "04"]
[TimeControl "180+2"]
[Date "2023.02.21"]
[WhiteClock "0:01:18"]
[BlackClock "0:00:10"]

1. e4 {[%clk 0:02:59]}  d6 {[%clk 0:02:58]} 2. d4 {[%clk 0:02:54]}  Nf6 {[%clk 0:02:59]} 3. Nc3 {[%clk 0:02:52]}  c6 {[%clk 0:02:59]} 4. g3 {[%clk 0:02:47]}  Qb6 {[%clk 0:02:43]} 5. Bg2 {[%clk 0:02:44]}  e5 {[%clk 0:02:42]} 6. Nge2 {[%clk 0:02:40]}  Be7 {[%clk 0:02:42]} 7. h3 {[%clk 0:02:39]}  O-O {[%clk 0:02:40]} 8. O-O {[%clk 0:02:38]}  a5 {[%clk 0:02:34]} 9. b3 {[%clk 0:02:36]}  Re8 {[%clk 0:02:29]} 10. Be3 {[%clk 0:02:35]}  Qc7 {[%clk 0:02:28]} 11. a4 {[%clk 0:02:33]}  Na6 {[%clk 0:02:18]} 12. g4 {[%clk 0:02:32]}  Bf8 {[%clk 0:02:11]} 13. Ng3 {[%clk 0:02:29]}  Nb4 {[%clk 0:01:55]} 14. Qd2 {[%clk 0:02:23]}  Be6 {[%clk 0:01:07]} 15. g5 {[%clk 0:02:16]}  exd4 {[%clk 0:01:01]} 16. Bxd4 {[%clk 0:02:11]}  Nd7 {[%clk 0:00:59]} 17. f4 {[%clk 0:02:07]}  Nc5 {[%clk 0:00:42]} 18. Rae1 {[%clk 0:01:56]}  Rad8 {[%clk 0:00:39]} 19. Nh5 {[%clk 0:01:54]}  Bc8 {[%clk 0:00:32]} 20. f5 {[%clk 0:01:52]}  d5 {[%clk 0:00:20]} 21. e5 {[%clk 0:01:45]}  Ne4 {[%clk 0:00:15]} 22. Nxe4 {[%clk 0:01:41]}  dxe4 {[%clk 0:00:14]} 23. Qf2 {[%clk 0:01:40]}  c5 {[%clk 0:00:13]} 24. Bb2 {[%clk 0:01:35]}  Rxe5 {[%clk 0:00:11]} 25. Bxe5 {[%clk 0:01:28]}  Qxe5 {[%clk 0:00:11]} 26. Rxe4 {[%clk 0:01:26]}  Qb2 {[%clk 0:00:10]} 27. g6 {[%clk 0:01:18]} 1-0


[Site "https://www.chess.com"]

[Event "Titled Tuesday Blitz February 21 Early 2023"]
[White "babbilator"]
[Black "Sargissyan, Sargis"]
[BlackFideId "13303210"]
[WhiteElo "2129"]
[BlackElo "2234"]
[Result "0-1"]
[Round "04"]
[TimeControl "180+2"]
[Date "2023.02.21"]
[WhiteClock "0:00:41"]
[BlackClock "0:00:58"]

1. e4 {[%clk 0:03:00]}  c5 {[%clk 0:02:59]} 2. Nc3 {[%clk 0:03:01]}  Nc6 {[%clk 0:02:55]} 3. Nf3 {[%clk 0:03:01]}  e5 {[%clk 0:02:55]} 4. Bc4 {[%clk 0:03:01]}  d6 {[%clk 0:02:55]} 5. d3 {[%clk 0:03:01]}  Be7 {[%clk 0:02:56]} 6. Nd2 {[%clk 0:02:56]}  Bg5 {[%clk 0:02:48]} 7. O-O {[%clk 0:02:55]}  Nf6 {[%clk 0:02:47]} 8. Re1 {[%clk 0:02:36]}  Bg4 {[%clk 0:02:39]} 9. f3 {[%clk 0:02:31]}  Be6 {[%clk 0:02:39]} 10. Nf1 {[%clk 0:02:31]}  h6 {[%clk 0:02:32]} 11. Ne3 {[%clk 0:02:30]}  Nd4 {[%clk 0:02:09]} 12. Ncd5 {[%clk 0:02:28]}  b5 {[%clk 0:02:04]} 13. Nxf6+ {[%clk 0:02:25]}  Bxf6 {[%clk 0:02:02]} 14. Bd5 {[%clk 0:02:25]}  Bxd5 {[%clk 0:01:54]} 15. Nxd5 {[%clk 0:02:24]}  Bg5 {[%clk 0:01:55]} 16. c3 {[%clk 0:02:24]}  Ne6 {[%clk 0:01:53]} 17. a4 {[%clk 0:02:15]}  b4 {[%clk 0:01:50]} 18. a5 {[%clk 0:01:40]}  bxc3 {[%clk 0:01:48]} 19. bxc3 {[%clk 0:01:29]}  O-O {[%clk 0:01:48]} 20. Qa4 {[%clk 0:01:22]}  Rb8 {[%clk 0:01:45]} 21. Qc6 {[%clk 0:01:13]}  Bxc1 {[%clk 0:01:30]} 22. Rexc1 {[%clk 0:01:12]}  Rb2 {[%clk 0:01:30]} 23. Rcb1 {[%clk 0:01:02]}  Rd2 {[%clk 0:01:25]} 24. Rd1 {[%clk 0:01:01]}  Rb2 {[%clk 0:01:13]} 25. Rdb1 {[%clk 0:01:00]}  Qb8 {[%clk 0:01:07]} 26. Rxb2 {[%clk 0:00:56]}  Qxb2 {[%clk 0:01:08]} 27. Rf1 {[%clk 0:00:51]}  Rd8 {[%clk 0:00:59]} 28. Qb7 {[%clk 0:00:41]}  Qxb7 {[%clk 0:00:58]} 0-1


[Site "https://www.chess.com"]